bitfinex/quotes_ETHUSD_20220309
["timestamp","ask_amount","ask_price","bid_price","bid_amount"]
[1646847558306,3.24855838,2745.8,2745.4,1.51503687]
[1646847559147,3.2444202,2745.8,2745.4,1.51503687]
[1646847559350,1.21515801,2745.8,2745.4,1.51503687]
[1646847559552,1.21515801,2745.8,2745.4,2.19364993]
[1646847559755,1.21515801,2745.8,2745.5,1.51503687]
[1646847559951,1.21515801,2745.8,2745.6,1.51503687]
[1646847560152,1.21515801,2745.8,2745.7,1.51503687]
[1646847560353,1.21101,2745.8,2745.7,1.51503687]
[1646847560553,2.42656884,2745.8,2745.4,1.51503687]
[1646847560755,2.42656884,2745.8,2745.5,1.51503687]
[1646847560756,2.4307169,2745.8,2745.5,1.51503687]
[1646847560952,2.4307169,2745.8,2745.4,1.51503687]
[1646847561152,3.3418135,2745.8,2745.5,1.51503687]
[1646847561553,3.33766544,2745.8,2745.5,1.51503687]
[1646847561755,3.33766544,2745.8,2745.6,1.51503687]
[1646847561954,3.34181632,2745.8,2745.7,1.51503687]
[1646847562154,3.34181632,2745.8,2745.4,1.51503687]
[1646847562359,3.64181632,2745.8,2745.5,1.51503687]
[1646847562603,3.64181632,2745.8,2745.6,1.51503687]
[1646847562811,3.64181632,2745.8,2745.7,1.51503687]
[1646847562812,3.63766544,2745.8,2745.7,1.51503687]
[1646847563009,3.63766544,2745.8,2745.4,1.51503687]
[1646847563010,4.55298632,2745.8,2745.4,1.51503687]
[1646847564010,4.54883544,2745.8,2745.4,1.51503687]
[1646847564211,4.55298629,2745.8,2745.4,1.51503687]
[1646847564411,0.13148929,2745.7,2745.4,1.51503687]
[1646847566652,0.13148929,2745.7,2745.4,5.69364993]
[1646847566849,0.13148929,2745.7,2745.5,2.19364993]
[1646847567249,0.13148929,2745.7,2745.6,1.51503687]
[1646847567450,0.08148929,2745.7,2745.5,2.19364993]
[1646847567658,0.08148929,2745.7,2745.6,1.51503687]
[1646847567853,0.08148929,2745.7,2745.5,2.19364993]
[1646847568255,0.08148929,2745.7,2745.6,0.67861306]
[1646847568453,0.08148929,2745.7,2745.6,4.17861306]
[1646847568652,0.08148929,2745.7,2745.6,5.69364993]
[1646847569255,0.00380206,2745.8,2745.6,5.01503687]
[1646847569452,0.00380206,2745.8,2745.7,2.19391921]
[1646847570115,1.28121416,2746.1,2745.7,2.19391921]
[1646847570315,0.00391089,2745.9,2745.7,2.19391921]
[1646847570811,0.00391089,2745.9,2745.8,1.51503687]
[1646847571013,0.00391089,2745.9,2745.7,0.67888234]
[1646847571213,1.28121416,2746.1,2745.7,0.67888234]
[1646847571512,0.0039108,2746.0,2745.7,0.67888234]
[1646847571713,0.0039108,2746.0,2745.7,2.19391921]
[1646847571912,0.0039108,2746.0,2745.8,2.19391921]
[1646847572113,0.0039108,2746.0,2745.9,1.51503687]
[1646847572314,0.3,2746.1,2745.9,5.69391921]
[1646847572517,0.3,2746.1,2746.0,1.51503687]
[1646847572717,7.05173892,2746.5,2746.0,2.19391921]
[1646847572718,0.00597933,2746.4,2746.0,2.19391921]
[1646847573318,1.17570057,2746.4,2746.0,2.19391921]
[1646847573518,1.46972124,2746.4,2746.0,2.19391921]
[1646847573949,0.0039071,2746.3,2746.0,2.19391921]
[1646847574549,2.38061194,2746.4,2746.3,0.0078142]
[1646847574751,2.42255802,2746.4,2746.3,1.52285107]
[1646847577707,3.42255802,2746.4,2746.3,1.52285107]
[1646847577908,3.42255802,2746.4,2746.3,1.47285107]
[1646847578211,3.42255802,2746.4,2745.9,0.011667]
[1646847578212,5.7665273,2746.3,2745.9,0.011667]
[1646847578609,0.3,2746.2,2745.9,0.011667]
[1646847578807,0.9110722,2746.1,2745.9,0.011667]
[1646847579210,0.3,2746.0,2745.9,0.011667]
[1646847579408,1.51107,2746.2,2745.9,0.011667]
[1646847579409,0.6,2746.2,2745.9,0.011667]
[1646847579609,0.3,2746.2,2745.9,0.011667]
[1646847579809,1.51166732,2746.4,2745.9,0.011667]
[1646847580011,0.3,2746.1,2745.9,0.011667]
[1646847580210,1.51557462,2746.4,2745.9,0.011667]
[1646847580609,1.51557462,2746.4,2745.9,0.69054934]
[1646847580813,1.51166732,2746.4,2746.0,0.67888234]
[1646847581011,1.51166732,2746.4,2745.9,0.69054934]
[1646847581212,2.42672734,2746.4,2745.9,0.011667]
[1646847581651,2.42672734,2746.4,2745.8,0.67888234]
[1646847581652,3.33763734,2746.4,2745.8,0.67888234]
[1646847581852,3.33768994,2746.4,2745.7,0.67888234]
[1646847582050,0.9110434,2746.3,2745.7,0.67888234]
[1646847582250,2.7331434,2746.3,2745.7,0.67888234]
[1646847582655,4.5552359,2746.3,2745.8,0.67888234]
[1646847582856,3.3331434,2746.3,2745.8,0.67888234]
[1646847583257,0.91096,2746.2,2745.9,0.69272434]
[1646847583658,0.3,2746.1,2745.9,0.69272434]
[1646847585401,0.3,2746.1,2746.0,0.67888234]
[1646847585601,0.7377858,2746.6,2746.0,3.5]
[1646847585798,0.7377858,2746.6,2746.2,0.68015178]
[1646847586007,0.0040155,2746.4,2746.2,0.68015178]
[1646847586802,3.26931261,2746.8,2746.2,0.68015178]
[1646847587005,0.91075,2746.6,2746.2,0.68015178]
[1646847587203,0.00401567,2746.4,2746.2,0.68015178]
[1646847587405,0.00401567,2746.4,2746.3,0.07855308]
[1646847588003,1.51075,2746.6,2746.3,0.07855308]
[1646847588406,0.00389373,2746.5,2746.3,0.07855308]
[1646847589249,1.51075,2746.6,2746.3,0.07855308]
[1646847589648,0.00389369,2746.5,2746.3,0.07855308]
[1646847590449,1.51075,2746.6,2746.3,0.07855308]
[1646847590650,0.00389369,2746.5,2746.3,0.07855308]
[1646847591049,0.00389369,2746.5,2746.4,0.95312635]
[1646847591448,0.00389369,2746.5,2746.3,0.07855308]
[1646847591649,1.51075,2746.6,2746.3,0.07855308]
[1646847592055,1.51465186,2746.6,2746.3,0.07855308]
[1646847592710,1.51465186,2746.6,2746.3,0.98150238]
[1646847592910,1.51075,2746.6,2746.3,0.98150238]
[1646847593111,1.51075,2746.6,2746.3,0.07855308]
[1646847593312,1.51465186,2746.6,2746.3,0.07855308]
[1646847594113,1.51075,2746.6,2746.3,0.07855308]
[1646847594313,1.51465186,2746.6,2746.3,0.07855308]
[1646847594711,4.18008551,2746.8,2746.6,0.10104683]
[1646847594912,4.18008551,2746.8,2746.6,0.09296543]
[1646847596114,0.3,2746.7,2746.6,0.09296543]
[1646847597961,0.3,2746.7,2746.6,1.60769934]
[1646847598160,3.8,2746.7,2746.6,1.60769934]
[1646847598361,7.52806355,2746.7,2746.6,1.60769934]
[1646847598761,8.52806355,2746.7,2746.6,1.60769934]
[1646847598963,5.02806355,2746.7,2746.6,1.60769934]
[1646847599165,4.02806355,2746.7,2746.6,1.52365782]
[1646847599762,4.52806355,2746.7,2746.6,1.52365782]
[1646847599964,4.02806355,2746.7,2746.6,1.52365782]
[1646847600399,0.8190813,2746.7,2746.6,1.52365782]
[1646847600599,0.8190813,2746.7,2746.6,1.53573682]
[1646847601004,0.2930813,2746.7,2746.6,1.53573682]
[1646847601613,0.2930813,2746.7,2746.6,1.52365782]
[1646847608803,3.7930813,2746.7,2746.6,1.52365782]
[1646847609008,4.3190813,2746.7,2746.6,1.52365782]
[1646847609205,4.02114485,2746.7,2746.6,1.52365782]
[1646847611208,4.02114485,2746.7,2746.6,1.51473391]
[1646847611457,4.02114485,2746.7,2746.6,1.21038966]
[1646847611657,0.91092,2746.6,2746.4,0.011667]
[1646847611858,3.6437029,2746.6,2746.4,0.011667]
[1646847612259,0.3,2746.5,2746.4,0.011667]
[1646847612461,1.16346485,2746.4,2746.3,0.011667]
[1646847613065,1.16346485,2746.4,2746.1,0.69181878]
[1646847613662,1.16346485,2746.4,2746.2,0.68015178]
[1646847613964,1.16346485,2746.4,2746.1,0.69181878]
[1646847614663,0.92549154,2746.2,2746.1,0.69181878]
[1646847614863,0.92549154,2746.2,2746.1,0.011667]
[1646847616210,1.22549154,2746.2,2746.1,0.67988158]
[1646847617714,1.22549154,2746.2,2745.9,0.011667]
[1646847617715,4.5,2746.1,2745.9,0.011667]
[1646847617910,4.5,2746.1,2745.4,4.17836163]
[1646847617911,0.91116,2745.9,2745.6,0.91701473]
[1646847618110,0.91116,2745.9,2745.6,0.90534773]
[1646847618311,1.21116,2745.9,2745.5,0.91713573]
[1646847618951,1.03918813,2745.8,2745.5,0.91713573]
[1646847620056,1.03918813,2745.8,2745.6,0.90534773]
[1646847620260,1.03918813,2745.8,2745.5,0.91713573]
[1646847620656,1.03918813,2745.8,2745.6,0.90534773]
[1646847621859,1.03918813,2745.8,2745.5,0.91713573]
[1646847622258,1.03918813,2745.8,2745.6,0.90534773]
[1646847627354,1.03918813,2745.8,2745.5,0.98609609]
[1646847628161,1.03918813,2745.8,2745.6,0.90534773]
[1646847629261,0.6,2745.9,2745.7,3.5]
[1646847629466,0.3,2745.9,2745.7,4.40534773]
[1646847629663,0.3,2745.9,2745.8,4.49294323]
[1646847629861,1.223,2746.3,2745.8,3.5875955]
[1646847630108,0.3,2746.3,2746.1,0.67991716]
[1646847630308,0.3,2746.4,2746.2,0.67991716]
[1646847632008,0.3,2746.4,2746.2,2.19454023]
[1646847632209,0.3,2746.4,2746.3,1.51462307]
[1646847632812,0.3,2746.4,2746.2,0.67991716]
[1646847633216,0.3,2746.4,2746.2,0.52991716]
[1646847634253,0.3,2746.4,2746.3,3.5]
[1646847634453,0.3,2746.4,2746.3,5.02630307]
[1646847634653,2.86828091,2746.8,2746.3,5.02630307]
[1646847634855,2.86828091,2746.8,2746.4,1.51462307]
[1646847635054,3.16828091,2746.8,2746.4,1.51462307]
[1646847635253,0.00372508,2746.7,2746.4,1.51462307]
[1646847635453,2.00350121,2746.7,2746.4,1.51462307]
[1646847636055,1.99977613,2746.7,2746.4,1.51462307]
[1646847636256,2.29977613,2746.7,2746.4,1.51462307]
[1646847636662,0.9109,2746.6,2746.4,1.51462307]
[1646847636859,0.9109,2746.6,2746.5,1.51462307]
[1646847637058,0.9109,2746.6,2746.2,1.51462307]
[1646847637263,1.0,2746.4,2746.2,1.51462307]
[1646847637458,1.9111,2746.4,2746.2,1.51462307]
[1646847637729,2.2111,2746.4,2746.2,1.51462307]
[1646847637929,2.25477878,2746.4,2746.0,1.51462307]
[1646847638128,2.25477878,2746.4,2745.8,0.011667]
[1646847638129,0.9110353,2746.3,2746.1,1.51462307]
[1646847638331,1.23340113,2746.2,2745.9,0.011667]
[1646847638534,1.23340113,2746.2,2746.0,1.51489019]
[1646847638535,1.53340113,2746.2,2746.0,1.51489019]
[1646847640830,1.53340113,2746.2,2746.0,1.51085519]
[1646847643061,1.53340113,2746.2,2745.8,0.011667]
[1646847643062,3.35560113,2746.2,2745.8,0.011667]
[1646847643264,4.35560113,2746.2,2745.8,0.69153817]
[1646847643461,4.35560113,2746.2,2745.8,0.011667]
[1646847643765,3.65560113,2746.2,2745.8,0.69153817]
[1646847644164,2.74454113,2746.2,2745.8,0.69153817]
[1646847644363,2.74454113,2746.2,2745.9,0.67987117]
[1646847645206,2.74454113,2746.2,2746.0,0.67987117]
[1646847645805,2.74454113,2746.2,2745.9,0.69159817]
[1646847647810,1.51114,2746.2,2745.9,0.69159817]
[1646847648012,1.51114,2746.2,2746.0,0.67987117]
[1646847649653,1.51114,2746.2,2746.1,4.17987117]
[1646847649854,0.3,2746.2,2746.1,0.67987117]
[1646847650054,0.6,2746.2,2746.1,0.011775]
[1646847650255,0.3,2746.2,2746.1,3.59750061]
[1646847650454,0.3,2746.2,2746.1,4.41833121]
[1646847650655,0.3,2746.3,2746.1,0.91833121]
[1646847651754,0.3,2746.3,2746.1,0.011775]
[1646847652808,0.3,2746.3,2746.1,3.511775]
[1646847653108,0.3,2746.3,2746.1,0.011775]
[1646847653310,0.3,2746.3,2746.1,3.511775]
[1646847653509,0.3,2746.3,2746.1,0.011775]
[1646847653712,0.3,2746.3,2746.1,3.511775]
[1646847653911,0.3,2746.3,2746.1,4.41833121]
[1646847654114,0.3,2746.3,2746.1,0.91833121]
[1646847654712,0.3,2746.3,2746.1,0.011775]
[1646847654911,0.3,2746.3,2746.1,3.511775]
[1646847655112,2.26088488,2746.6,2746.1,3.511775]
[1646847655312,0.91082,2746.4,2746.3,0.67979219]
[1646847656378,1.21082,2746.4,2746.2,0.011905]
[1646847656568,0.3,2746.3,2746.2,0.93579014]
[1646847656967,0.3,2746.3,2746.2,4.43579014]
[1646847657167,0.3,2746.3,2746.2,0.92388514]
[1646847657368,0.3,2746.3,2746.1,0.91833121]
[1646847657568,0.3,2746.3,2746.2,0.67972295]
[1646847658473,0.3,2746.3,2746.1,0.011667]
[1646847658675,0.3,2746.3,2746.2,0.67971355]
[1646847659478,0.3,2746.3,2746.1,0.011667]
[1646847659678,0.3,2746.3,2746.2,0.67969491]
[1646847659879,0.4961954,2746.3,2746.1,0.67969491]
[1646847660103,0.97594499,2746.2,2746.1,0.67969491]
[1646847660307,1.27594499,2746.2,2746.1,0.67969491]
[1646847661913,1.27594499,2746.2,2746.1,2.19454795]
[1646847662110,1.27594499,2746.2,2746.1,0.67969491]
[1646847662309,1.27594499,2746.2,2746.1,2.19454795]
[1646847662709,1.27594499,2746.2,2746.1,0.67969491]
[1646847662911,1.27594499,2746.2,2746.1,2.19454795]
[1646847663113,1.27594499,2746.2,2746.1,0.67969491]
[1646847664955,0.3,2746.2,2746.1,0.67969491]
[1646847665355,1.4070998,2746.3,2746.1,0.67969491]
[1646847666155,1.4070998,2746.3,2746.1,2.19454795]
[1646847666559,1.4070998,2746.3,2746.1,1.51485304]
[1646847666756,1.4070998,2746.3,2746.2,1.51485304]
[1646847666955,1.4070998,2746.3,2746.1,2.19454795]
[1646847668206,0.526,2746.2,2745.9,0.67969491]
[1646847668407,0.526,2746.2,2745.8,0.67969491]
[1646847668408,1.73716,2746.2,2745.8,0.67969491]
[1646847668606,2.73716,2746.2,2745.8,1.51491791]
[1646847668806,0.0506393,2746.1,2745.9,1.51491791]
[1646847669006,1.4371586,2746.0,2745.7,0.00374628]
[1646847669207,1.02097168,2745.8,2745.7,0.00374628]
[1646847669406,1.02097168,2745.8,2745.7,1.51873829]
[1646847669607,0.79293994,2745.9,2745.7,1.51873829]
[1646847669810,1.70410994,2745.9,2745.8,1.51499201]
[1646847670008,0.49293994,2745.9,2745.8,0.69137091]
[1646847670209,0.3,2745.9,2745.8,5.03889401]
[1646847670407,0.3,2745.9,2745.8,2.44545022]
[1646847670707,1.44906579,2746.4,2745.9,1.0712663]
[1646847670909,1.44906579,2746.4,2746.1,0.69181617]
[1646847671108,1.14906579,2746.4,2746.2,1.51499201]
[1646847671360,0.04434355,2746.3,2746.2,1.51499201]
[1646847671558,0.57034355,2746.3,2745.9,1.51499201]
[1646847671757,3.39264355,2746.3,2746.0,1.51499201]
[1646847671956,1.0,2746.2,2746.1,1.51499201]
[1646847672156,3.34832,2746.2,2746.1,1.51499201]
[1646847672360,4.5594317,2746.2,2745.9,1.51499201]
[1646847672559,5.5594317,2746.2,2746.0,1.51499201]
[1646847672764,0.05235409,2746.0,2745.5,0.67979517]
[1646847672963,0.526,2745.9,2745.5,0.67979517]
[1646847673162,0.04396054,2745.8,2745.5,0.67979517]
[1646847673364,2.8224309,2745.7,2745.5,2.19482641]
[1646847673761,2.8224309,2745.7,2745.6,1.51503124]
[1646847673762,3.1224309,2745.7,2745.6,1.51503124]
[1646847674162,3.1224309,2745.7,2745.4,0.69146217]
[1646847674163,3.1224309,2745.7,2745.5,1.51503124]
[1646847674363,1.09728613,2745.6,2745.4,0.69146217]
[1646847674563,1.09728613,2745.6,2745.5,1.51507433]
[1646847674564,2.00850613,2745.6,2745.5,1.51507433]
[1646847674762,0.69242996,2745.6,2745.5,0.00407971]
[1646847674966,0.69242996,2745.6,2745.5,1.51915404]
[1646847675206,0.3,2745.6,2745.5,2.19894921]
[1646847675407,0.3,2745.6,2745.5,2.21066221]
[1646847675706,0.15367877,2745.7,2745.5,1.52678733]
[1646847675906,1.003268,2745.8,2745.6,1.52694533]
[1646847676204,1.303268,2745.8,2745.7,2.19450576]
[1646847676406,1.303268,2745.8,2745.7,5.02684233]
[1646847676407,0.53634062,2745.8,2745.7,5.02684233]
[1646847676606,0.55919147,2745.9,2745.7,2.20627376]
[1646847676806,0.20048477,2746.2,2745.9,0.012026]
[1646847677005,0.20048477,2746.2,2746.0,1.51507433]
[1646847677006,0.02691893,2746.2,2746.0,1.51507433]
[1646847677609,0.02691893,2746.2,2746.0,1.52675133]
[1646847677811,0.02691893,2746.2,2746.1,1.51507433]
[1646847678011,0.02691893,2746.2,2746.1,0.011801]
[1646847678213,0.02691893,2746.2,2746.1,1.52687533]
[1646847679152,0.32668677,2746.4,2746.1,1.51507433]
[1646847679754,0.32668677,2746.4,2746.1,2.72628661]
[1646847679956,0.32668677,2746.4,2746.2,1.51507433]
[1646847683011,0.32668677,2746.4,2746.2,1.52685633]
[1646847683208,0.32668677,2746.4,2746.3,1.51507433]
[1646847683408,0.32668677,2746.4,2746.3,1.58720385]
[1646847684108,0.02668677,2746.4,2746.3,1.58720385]
[1646847684310,0.32668677,2746.4,2746.3,1.58720385]
[1646847684908,0.32668677,2746.4,2746.3,5.08720385]
[1646847685109,0.02668677,2746.4,2746.3,5.09894785]
[1646847685319,0.02668677,2746.4,2746.3,5.39061833]
[1646847686455,0.02668677,2746.4,2746.3,6.29717454]
[1646847686661,0.02668677,2746.4,2746.3,7.33747454]
[1646847686958,0.02668677,2746.4,2746.3,6.43091833]
[1646847687360,0.02668677,2746.4,2746.3,7.56511833]
[1646847687559,0.02668677,2746.4,2746.3,8.92249269]
[1646847687759,0.02668677,2746.4,2746.3,9.44849269]
[1646847688961,0.02668677,2746.4,2746.3,8.09111833]
[1646847689561,0.05511196,2746.4,2746.3,8.09111833]
[1646847691938,0.00409086,2746.8,2746.5,0.3638]
[1646847692137,0.00409086,2746.8,2746.6,6.31378332]
[1646847692337,0.00409086,2746.8,2746.7,3.511884]
[1646847692538,0.94042,2747.2,2746.7,5.70512436]
[1646847692739,0.3,2747.1,2746.8,1.52702033]
[1646847692938,0.3,2747.1,2746.9,1.51507433]
[1646847693344,1.24042,2747.2,2746.9,1.51507433]
[1646847693543,1.24042,2747.2,2747.1,1.0651455]
[1646847693741,1.54042,2747.2,2747.1,6.08021983]
[1646847693976,1.54437862,2747.2,2747.1,2.58021983]
[1646847694190,1.39437862,2747.2,2747.1,2.58021983]
[1646847694778,1.59976017,2747.4,2747.1,2.58021983]
[1646847694978,1.59976017,2747.4,2747.2,1.51507433]
[1646847695176,1.12304068,2747.7,2747.2,1.51507433]
[1646847695177,0.00395853,2747.3,2747.2,1.51507433]
[1646847695379,0.00395853,2747.3,2747.2,1.52691433]
[1646847695578,0.00395853,2747.3,2747.2,1.51507433]
[1646847696180,0.3,2747.4,2747.2,1.51507433]
[1646847697635,0.30128109,2747.4,2747.2,1.51507433]
[1646847698625,0.3,2747.4,2747.2,1.51507433]
[1646847698822,0.30397426,2747.4,2747.2,1.51507433]
[1646847699226,0.49184969,2747.4,2747.2,1.51507433]
[1646847699824,0.48787543,2747.4,2747.2,1.51507433]
[1646847700023,0.49184969,2747.4,2747.2,1.51507433]
[1646847701027,0.48787543,2747.4,2747.2,1.51507433]
[1646847701227,0.49184931,2747.4,2747.2,1.51507433]
[1646847701660,0.91063,2747.3,2747.2,1.51507433]
[1646847702262,0.78787543,2747.4,2747.2,1.51507433]
[1646847702562,0.49184936,2747.4,2747.2,1.51507433]
[1646847703365,0.48787543,2747.4,2747.2,1.51507433]
[1646847703566,1.65150774,2747.4,2747.2,1.51507433]
[1646847703969,3.51688608,2747.4,2747.2,1.51507433]
[1646847704670,2.35325377,2747.4,2747.2,1.51507433]
[1646847704869,0.53584345,2747.4,2747.2,1.51507433]
[1646847705513,0.49172511,2747.4,2747.2,1.51507433]
[1646847705716,0.48787543,2747.4,2747.2,1.51507433]
[1646847706114,0.49172511,2747.4,2747.2,1.51507433]
[1646847706916,0.48787543,2747.4,2747.2,1.51507433]
[1646847707316,0.4915993,2747.4,2747.2,1.51507433]
[1646847708223,0.48787543,2747.4,2747.2,1.52675533]
[1646847708421,1.40216764,2747.4,2747.3,1.51507433]
[1646847708721,0.49160764,2747.4,2747.3,1.51507433]
[1646847709362,0.48787543,2747.4,2747.2,0.011681]
[1646847709562,0.48787543,2747.4,2747.1,0.011741]
[1646847709563,1.39843543,2747.4,2747.1,0.011741]
[1646847709763,1.39843543,2747.4,2747.2,1.51444986]
[1646847709965,0.96362433,2747.2,2747.0,0.011667]
[1646847710164,0.96362433,2747.2,2747.1,1.51447835]
[1646847710165,2.78482713,2747.2,2747.1,1.51447835]
[1646847710362,2.17418713,2747.2,2747.0,1.51447835]
[1646847710562,2.17418713,2747.2,2747.1,1.35847835]
[1646847710563,3.0318228,2747.2,2747.1,1.35847835]
[1646847710764,3.84087222,2747.2,2746.9,0.011667]
[1646847710964,2.7318228,2747.2,2746.9,0.011667]
[1646847711172,3.6424528,2747.2,2746.9,0.011667]
[1646847711368,3.9424528,2747.2,2746.9,0.011667]
[1646847711567,0.9105837,2747.1,2746.9,0.011667]
[1646847711966,2.04980187,2747.1,2746.9,0.011667]
[1646847712365,0.9105837,2747.1,2746.9,0.011698]
[1646847714925,0.9105837,2747.1,2746.6,0.011667]
[1646847714926,0.526,2747.0,2746.6,0.011667]
[1646847715121,5.1701575,2747.0,2746.5,0.011891]
[1646847715319,5.1701575,2747.0,2746.4,0.11022391]
[1646847715320,5.0,2746.9,2746.4,0.11022391]
[1646847715522,1.0,2746.7,2746.4,0.11022391]
[1646847715720,1.0,2746.5,2746.4,0.11022391]
[1646847718167,1.54637804,2746.5,2746.4,0.11022391]
[1646847718371,5.0,2746.4,2746.0,0.00374119]
[1646847718567,7.34822,2746.4,2746.0,0.00374119]
[1646847718767,8.34822,2746.4,2746.0,0.00374119]
[1646847718968,8.34822,2746.4,2745.6,0.67816603]
[1646847719167,8.34822,2746.4,2745.4,0.99141574]
[1646847719168,0.99000069,2746.0,2745.5,0.67816603]
[1646847719372,0.99000069,2746.0,2745.6,0.67816603]
[1646847719373,4.4111155,2745.9,2745.6,0.67816603]
[1646847719769,5.3222155,2745.9,2745.6,0.67816603]
[1646847720125,5.6222155,2745.9,2745.5,0.67816603]
[1646847720514,5.6222155,2745.9,2745.6,0.00374147]
[1646847721115,6.5333055,2745.9,2745.6,0.00374147]
[1646847721516,6.5333055,2745.9,2745.5,0.67816603]
[1646847721716,6.5333055,2745.9,2745.6,0.00374429]
[1646847722119,5.6222055,2745.9,2745.6,0.00374429]
[1646847722319,5.6222055,2745.9,2745.7,0.67816603]
[1646847722320,3.5,2745.9,2745.7,0.67816603]
[1646847722620,3.5,2745.9,2745.8,0.67816603]
[1646847723024,3.5,2745.9,2745.7,3.58772096]
[1646847723225,3.5,2745.9,2745.7,4.54517447]
[1646847723422,3.5,2746.1,2745.7,4.54517447]
[1646847723622,3.8,2746.1,2745.9,0.67808331]
[1646847724470,0.3,2746.1,2746.0,3.5]
[1646847724666,0.91084,2746.2,2746.0,3.5]
[1646847725068,0.91084,2746.2,2746.1,0.09049161]
[1646847726468,1.21084,2746.2,2746.1,0.09049161]
[1646847726871,1.51084,2746.2,2746.1,0.09049161]
[1646847730523,1.51084,2746.2,2746.1,1.60533575]
[1646847731569,1.51084,2746.2,2746.1,2.19345478]
[1646847731768,1.51084,2746.2,2746.1,0.67861064]
[1646847731968,1.51084,2746.2,2746.0,0.68235177]
[1646847732170,1.51084,2746.2,2746.1,0.67861064]
[1646847732373,1.51084,2746.2,2746.0,0.67861064]
[1646847732570,1.51084,2746.2,2746.0,0.68235176]
[1646847733175,1.51084,2746.2,2746.0,2.1971959]
[1646847733373,1.51084,2746.2,2746.0,2.19345478]
[1646847733773,1.51084,2746.2,2746.1,1.51484414]
[1646847734175,1.51084,2746.2,2746.0,0.6823518]
[1646847734375,1.51084,2746.2,2746.0,0.00374116]
[1646847734576,1.1915221,2746.1,2745.7,1.51484414]
[1646847734879,1.8220596,2746.0,2745.8,1.51507206]
[1646847735129,1.8220596,2746.0,2745.9,1.51507206]
[1646847735520,1.8220596,2746.0,2745.6,2.26328486]
[1646847735720,0.20597704,2746.0,2745.6,0.9042128]
[1646847735918,0.20597704,2746.0,2745.5,0.9042128]
[1646847736119,0.20597704,2746.0,2745.6,0.07281941]
[1646847737120,0.911,2745.9,2745.6,0.07281941]
[1646847737320,1.211,2745.9,2745.6,0.07281941]
[1646847737624,1.211,2745.9,2745.6,0.97703221]
[1646847737824,1.211,2745.9,2745.7,0.07792415]
[1646847738627,1.211,2745.9,2745.5,0.9042128]
[1646847738869,1.211,2745.9,2745.4,0.9042128]
[1646847738870,0.04876743,2745.8,2745.4,0.9042128]
[1646847739076,2.77571942,2745.7,2745.4,0.9042128]
[1646847739273,2.77571942,2745.7,2745.3,1.02189145]
[1646847739674,2.77571942,2745.7,2745.4,0.00418122]
[1646847739875,2.7337377,2745.7,2745.5,0.912951]
[1646847740378,2.7337377,2745.7,2745.4,0.00418122]
[1646847740573,1.8224877,2745.7,2745.5,1.18094213]
[1646847740976,1.8224877,2745.7,2745.5,1.1851233]
[1646847741375,1.8224877,2745.7,2745.5,0.00418117]
[1646847741776,1.8224877,2745.7,2745.4,0.9042128]
[1646847742176,1.8224877,2745.7,2745.0,2.35737436]
[1646847742177,0.91116,2745.6,2745.0,2.35737436]
[1646847742374,1.82231,2745.5,2745.1,0.89327893]
[1646847742823,2.12231,2745.5,2745.0,1.0]
[1646847743426,2.12231,2745.5,2745.1,3.5]
[1646847743923,2.12231,2745.5,2745.0,1.0]
[1646847744124,2.12231,2745.5,2745.1,3.5]
[1646847744325,2.12231,2745.5,2745.1,4.85737436]
[1646847744526,2.12231,2745.5,2745.2,0.00256429]
[1646847744728,2.12231,2745.5,2745.2,1.14181759]
[1646847744924,2.12231,2745.5,2745.3,3.5]
[1646847745530,2.12231,2745.5,2745.3,3.57940178]
[1646847745726,2.12231,2745.5,2745.3,3.58196597]
[1646847746574,2.12231,2745.5,2745.3,3.42340178]
[1646847746977,2.12231,2745.5,2745.3,3.427455]
[1646847747980,2.12231,2745.5,2745.3,3.344]
[1646847748184,2.12231,2745.5,2745.3,3.3479821]
[1646847748581,2.12231,2745.5,2745.3,3.5039821]
[1646847748981,2.12231,2745.5,2745.3,3.5]
[1646847749385,2.12231,2745.5,2745.3,3.5039821]
[1646847749583,2.12231,2745.5,2745.3,0.0039821]
[1646847750322,2.12231,2745.5,2745.2,1.1392533]
[1646847750524,2.12231,2745.5,2745.3,0.0039821]
[1646847751325,2.12231,2745.5,2745.3,0.90825764]
[1646847751525,2.12231,2745.5,2745.3,0.90427554]
[1646847751724,2.12231,2745.5,2745.3,0.90819843]
[1646847752731,2.12231,2745.5,2745.4,0.90427554]
[1646847753336,2.07231,2745.5,2745.4,0.90427554]
[1646847754782,2.07231,2745.5,2745.3,3.50392285]
[1646847754980,2.07231,2745.5,2745.3,0.00392285]
[1646847755179,2.07231,2745.5,2745.2,2.49662766]
[1646847755381,2.07231,2745.5,2745.3,0.00392684]
[1646847755582,2.07231,2745.5,2745.4,0.90498983]
[1646847755782,0.4560975,2745.5,2745.3,1.51911826]
[1646847755985,0.4560975,2745.5,2745.3,5.01911826]
[1646847756181,0.4560975,2745.5,2745.4,1.51519142]
[1646847756381,0.1560975,2745.5,2745.4,0.90502528]
[1646847756582,0.1560975,2745.5,2745.4,1.51519142]
[1646847756786,0.1560975,2745.5,2745.4,0.90529082]
[1646847757827,3.08719328,2745.6,2745.4,0.90529082]
[1646847758029,0.35388328,2745.6,2745.4,0.90529082]
[1646847758229,0.05388328,2745.6,2745.4,0.90529082]
[1646847758829,0.05388328,2745.6,2745.4,0.90921735]
[1646847759830,0.05388328,2745.6,2745.4,0.90529082]
[1646847760329,0.05388328,2745.6,2745.4,0.90921735]
[1646847760733,0.05388328,2745.6,2745.5,0.90529082]
[1646847760932,0.05388328,2745.6,2745.5,1.51519142]
[1646847762077,0.05388328,2745.6,2745.5,2.42140602]
[1646847763083,0.05388328,2745.6,2745.5,1.51519142]
[1646847763685,0.05388328,2745.6,2745.4,0.91014117]
[1646847764681,0.05388328,2745.6,2745.4,0.9062146]
[1646847764882,0.05388328,2745.6,2745.4,0.91014114]
[1646847765531,0.05388328,2745.6,2745.5,2.42140602]
[1646847766131,0.05388328,2745.6,2745.5,0.9062146]
[1646847766335,0.05388328,2745.6,2745.5,1.51519142]
[1646847766731,0.05388328,2745.6,2745.4,0.91010744]
[1646847767131,0.05388328,2745.6,2745.4,0.9061809]
[1646847767533,0.05388328,2745.6,2745.4,0.91010747]
[1646847768132,1.87612798,2745.6,2745.5,1.51519142]
[1646847768334,2.1222447,2745.6,2745.4,0.9061809]
[1646847768634,0.3,2745.5,2745.4,0.00392654]
[1646847768888,5.8,2745.5,2745.4,1.51530088]
[1646847769083,0.9114,2745.2,2744.5,1.81249065]
[1646847769288,0.91158,2745.0,2744.1,5.51797291]
[1646847769490,1.21902055,2744.3,2744.1,4.15855706]
[1646847769785,1.51902055,2744.3,2743.9,1.35941585]